bitfinex-derivatives/quotes_ETHF0:USTF0_20250520
["timestamp","ask_amount","ask_price","bid_price","bid_amount"]
[1747779242587,4.87378499,2503.2,2503.1,0.31962534]
[1747779243594,4.87378499,2503.2,2503.1,1.11831534]
[1747779244085,4.07508499,2503.2,2503.1,1.11831534]
[1747779244488,1.99708499,2503.2,2503.1,1.11831534]
[1747779244789,3.21378838,2503.4,2503.3,0.79863]
[1747779245289,5.21087337,2503.4,2503.3,0.79863]
[1747779245489,6.52177337,2503.4,2503.3,0.79863]
[1747779245785,6.52177337,2503.4,2503.3,2.795955]
[1747779245786,3.21378838,2503.4,2503.3,2.795955]
[1747779245978,5.21087337,2503.4,2503.3,3.601055]
[1747779246184,3.21378838,2503.4,2503.3,18.622255]
[1747779246582,3.21378838,2503.4,2503.3,18.94188034]
[1747779246779,5.21087337,2503.4,2503.3,18.94188034]
[1747779247083,0.00598838,2503.4,2503.3,18.94188034]
[1747779247384,1.4353903,2504.0,2503.9,0.79843]
[1747779247586,0.6620903,2504.0,2503.9,0.79843]
[1747779247790,1.83979367,2504.0,2503.9,0.79843]
[1747779248084,0.6620903,2504.0,2503.9,4.40310034]
[1747779248284,1.83979367,2504.0,2503.9,4.40310034]
[1747779248585,1.83979367,2504.0,2503.9,2.40625534]
[1747779248883,0.6620903,2504.0,2503.9,2.40625534]
[1747779249089,1.83979367,2504.0,2503.9,2.40625534]
[1747779249279,2.63819367,2504.0,2503.9,2.40625534]
[1747779249784,2.63819367,2504.0,2503.9,16.13925534]
[1747779249987,1.4604903,2504.0,2503.9,16.13925534]
[1747779250386,0.6620903,2504.0,2503.9,16.13925534]
[1747779250784,1.83979367,2504.0,2503.9,16.13925534]
[1747779251091,0.6620903,2504.0,2503.9,16.13925534]
[1747779251393,0.80433838,2504.2,2504.1,0.79837]
[1747779251590,2.15873838,2504.2,2504.1,0.79837]
[1747779251889,1.18369175,2504.2,2504.1,0.79837]
[1747779252393,1.18369175,2504.2,2504.1,1.11799534]
[1747779252588,0.00598838,2504.2,2504.1,14.84899534]
[1747779252791,2.53809175,2504.2,2504.1,14.84899534]
[1747779253088,1.36038838,2504.2,2504.1,14.84899534]
[1747779253288,2.53809175,2504.2,2504.1,14.84899534]
[1747779253988,2.15872838,2504.2,2504.1,14.84899534]
[1747779254389,3.33643175,2504.2,2504.1,0.31962534]
[1747779255492,0.79843,2503.9,2503.8,0.79845]
[1747779255986,1.97613337,2503.9,2503.8,14.52845]
[1747779256490,0.79843,2503.9,2503.8,14.52845]
[1747779256687,2.08163,2503.9,2503.8,14.52845]
[1747779256887,3.25933337,2503.9,2503.8,14.52845]
[1747779257592,2.08163,2503.9,2503.8,0.79845]
[1747779257789,3.25933337,2503.9,2503.8,14.52845]
[1747779257991,2.08163,2503.9,2503.8,14.52845]
[1747779258298,3.25933337,2503.9,2503.8,14.52845]
[1747779259193,2.08163,2503.9,2503.8,14.52845]
[1747779259395,3.25933337,2503.9,2503.8,14.52845]
[1747779259600,0.79847,2503.8,2503.7,0.00598838]
[1747779259804,4.01347337,2503.8,2503.7,0.00598838]
[1747779260100,9.01347337,2503.8,2503.7,0.00598838]
[1747779260788,4.01347337,2503.8,2503.7,0.00598838]
[1747779262599,4.01347337,2503.8,2503.7,0.80448838]
[1747779262801,4.01347337,2503.8,2503.7,0.00598838]
[1747779262994,2.47760337,2503.8,2503.7,0.80448838]
[1747779263200,3.2078,2503.9,2503.8,0.79847]
[1747779263398,3.2078,2503.9,2503.8,2.20707]
[1747779263701,4.38550337,2503.9,2503.8,2.20707]
[1747779264702,5.18393337,2503.9,2503.8,2.20707]
[1747779265205,4.38550337,2503.9,2503.8,17.93399499]
[1747779265696,3.2078,2503.9,2503.8,17.93399499]
[1747779265899,4.38550337,2503.9,2503.8,17.93399499]
[1747779266103,4.38550337,2503.9,2503.8,15.93707]
[1747779266296,4.01212838,2504.2,2504.1,0.79837]
[1747779266496,2.10642838,2504.2,2504.1,0.79837]
[1747779266690,2.10642838,2504.2,2503.7,3.21378838]
[1747779266691,2.48579175,2504.2,2503.7,3.21378838]
[1747779266902,1.97617337,2503.8,2503.7,0.29003917]
[1747779267294,4.81617337,2503.8,2503.7,0.29003917]
[1747779268695,10.04813889,2503.8,2503.7,0.29003917]
[1747779268898,10.04813889,2503.8,2503.7,0.00598838]
[1747779269495,5.04813889,2503.8,2503.7,0.00598838]
[1747779270206,10.04813889,2503.8,2503.7,0.00598838]
[1747779270403,10.04814081,2503.8,2503.7,0.00598838]
[1747779270703,0.79863,2503.3,2503.2,1.3623]
[1747779270904,1.97633337,2503.3,2503.2,1.3623]
[1747779271608,1.97633337,2503.3,2503.2,1.68183466]
[1747779272007,1.97633337,2503.3,2503.2,0.31953466]
[1747779272207,2.67343337,2503.3,2503.2,0.31953466]
[1747779272703,0.79875,2502.9,2502.8,0.79876]
[1747779272904,1.97645337,2502.9,2502.8,2.09566]
[1747779273096,1.17770337,2502.9,2502.7,0.28405079]
[1747779273299,5.20456,2503.1,2502.7,0.28405079]
[1747779273300,7.27809337,2502.8,2502.7,0.28405079]
[1747779273605,48.07809337,2502.8,2502.7,0.28405079]
[1747779274309,1.17770337,2502.8,2502.7,3.08067079]
[1747779274511,1.17770337,2502.8,2502.7,3.84357079]
[1747779274892,1.17770337,2502.8,2502.7,3.55952]
[1747779275705,1.17770337,2502.8,2502.7,2.79662]
[1747779275913,0.79894,2502.4,2502.3,0.79892]
[1747779276104,1.97664337,2502.4,2502.3,2.17352]
[1747779278013,1.17770337,2502.4,2502.3,2.17352]
[1747779278311,1.17770337,2502.4,2502.3,4.17164]
[1747779280610,1.17770337,2502.4,2502.0,0.28371797]
[1747779280811,1.17770337,2502.1,2502.0,1.08275797]
[1747779281106,1.97671337,2502.1,2502.0,0.79904]
[1747779281312,0.79904,2502.0,2501.9,1.08278797]
[1747779281517,1.97674337,2502.0,2501.9,1.08278797]
[1747779281808,1.97674337,2502.0,2501.9,3.08122797]
[1747779282506,1.17770337,2502.0,2501.9,3.08122797]
[1747779282916,1.17770337,2502.0,2501.9,2.79751]
[1747779284212,0.79891,2502.5,2502.2,1.99741]
[1747779284409,0.79891,2502.5,2502.4,0.79888]
[1747779284609,5.36875838,2502.6,2502.5,0.79888]
[1747779284911,7.36679838,2502.6,2502.5,0.79888]
[1747779285112,6.56792838,2502.6,2502.5,0.79888]
[1747779285304,6.56792838,2502.6,2502.5,2.79684]
[1747779285305,0.00598838,2502.6,2502.5,2.79684]
[1747779285704,3.2078,2503.2,2502.5,37.09976]
[1747779285906,0.79868,2503.2,2503.1,0.79869]
[1747779286414,0.79868,2503.2,2503.1,2.796175]
[1747779287221,0.66807868,2503.4,2503.3,0.79863]
[1747779287413,0.66807868,2503.4,2503.3,2.795955]
[1747779287912,0.66807868,2503.4,2503.3,16.204955]
[1747779288613,0.66807868,2503.4,2503.3,2.795955]
[1747779288816,0.66807868,2503.4,2503.3,16.204955]
[1747779289208,0.66807868,2503.4,2503.3,21.204955]
[1747779289513,0.66807868,2503.4,2503.3,16.204955]
[1747779290018,0.00598838,2503.4,2503.3,16.204955]
[1747779292118,0.00598838,2503.4,2503.3,16.52443827]
[1747779293402,0.00598838,2503.4,2503.3,17.89673827]
[1747779294317,0.00598838,2503.4,2503.3,4.48773827]
[1747779294519,0.00598838,2503.4,2503.3,17.89473827]
[1747779295915,8.38e-06,2503.4,2503.3,22.89473827]
[1747779296806,8.38e-06,2503.4,2503.3,5.05456503]
[1747779297009,8.38e-06,2503.4,2503.3,18.35556503]
[1747779298516,8.38e-06,2503.4,2503.3,18.1647033]
[1747779298717,8.38e-06,2503.4,2503.3,23.1647033]
[1747779299224,8.38e-06,2503.4,2503.3,36.6437033]
[1747779300426,8.38e-06,2503.4,2503.3,4.8637033]
[1747779301629,8.38e-06,2503.4,2503.3,4.48773827]
[1747779303630,3.2078,2504.7,2503.3,8.68910827]
[1747779303820,1.4764,2504.8,2504.3,1.99578]
[1747779304023,1.2989,2504.6,2504.5,4.00604]
[1747779304330,1.2989,2504.6,2504.5,7.368005]
[1747779305628,1.48238838,2504.8,2504.7,0.79818]
[1747779305824,2.78128838,2504.8,2504.7,0.79818]
[1747779306024,4.77749339,2504.8,2504.7,0.79818]
[1747779306225,5.43958369,2504.8,2504.7,0.79818]
[1747779308230,3.44337868,2504.8,2504.7,0.79818]
[1747779310330,2.78128838,2504.8,2504.7,0.79818]
[1747779311626,8.38e-06,2504.8,2504.7,2.794385]
[1747779311926,0.79818,2504.7,2504.6,0.79819]
[1747779312126,2.0792,2504.7,2504.3,15.29672838]
[1747779312333,0.79828,2504.5,2504.4,0.79828]
[1747779312529,7.283405,2504.7,2504.6,0.79821]
[1747779313625,8.081585,2504.7,2504.6,0.79821]
[1747779315133,7.283405,2504.7,2504.6,0.79821]
[1747779315439,2.0792,2504.7,2504.6,0.79821]
[1747779315637,2.0792,2504.7,2504.6,2.79449499]
[1747779316041,8.38e-06,2504.8,2504.7,0.79818]
[1747779316240,8.38e-06,2504.8,2504.7,15.50388]
[1747779316541,8.38e-06,2504.8,2504.7,17.500085]
[1747779317642,8.38e-06,2504.8,2504.7,17.81936359]
[1747779318238,8.38e-06,2504.8,2504.7,22.81936359]
[1747779318541,2.1545,2505.5,2505.4,0.79796]
[1747779318745,2.1545,2505.5,2505.4,14.09196]
[1747779319143,2.1545,2505.5,2505.4,16.08761]
[1747779319441,2.1545,2505.5,2505.4,14.09196]
[1747779320737,2.1545,2505.5,2505.4,16.08761]
[1747779321237,2.1545,2505.5,2505.4,17.48891]
[1747779322446,4.94807,2505.5,2505.4,0.79796]
[1747779322745,0.79805,2505.2,2505.1,0.79801]
[1747779322947,3.2078,2505.3,2505.2,0.79802]
[1747779323147,2.13509,2505.3,2505.2,0.79802]
[1747779323343,9.1309,2505.3,2505.2,0.79802]
[1747779324346,4.1309,2505.3,2505.2,0.79802]
[1747779324546,9.1309,2505.3,2505.2,0.79802]
[1747779325848,0.00598838,2505.7,2505.4,0.79796]
[1747779326053,3.31453838,2505.7,2505.6,0.79789]
[1747779326354,4.03865838,2505.7,2505.6,0.79789]
[1747779330353,0.79791,2505.6,2505.2,5.48427093]
[1747779330547,1.3566,2505.5,2505.4,0.79796]
[1747779330952,3.35225,2505.5,2505.4,0.79796]
[1747779331957,4.15017,2505.5,2505.4,0.79796]
[1747779332153,11.56005,2505.5,2505.0,0.28142093]
[1747779332358,0.79805,2505.2,2505.1,0.79803]
[1747779332750,2.79394,2505.2,2505.1,0.79803]
[1747779333157,2.79394,2505.2,2505.1,1.11731617]
[1747779333352,1.99589,2505.2,2505.1,1.11731617]
[1747779333658,2.79391,2505.2,2505.1,1.11731617]
[1747779335460,3.55831,2505.2,2505.1,1.11731617]
[1747779335661,4.93211,2505.2,2505.1,1.11731617]
[1747779335860,0.79812,2504.9,2504.8,0.37596503]
[1747779336055,4.00592,2504.9,2504.8,0.37596503]
[1747779336262,11.00205001,2504.9,2504.8,0.37596503]
[1747779336452,5.20393001,2504.9,2504.8,1.17411503]
[1747779336755,5.20393001,2504.9,2504.3,0.38195341]
[1747779336956,2.1346,2504.8,2504.5,0.79822]
[1747779337159,0.79823,2504.6,2504.5,0.79822]
[1747779337460,2.1346,2504.8,2504.3,0.38195341]
[1747779337461,0.7644,2504.7,2504.6,0.79821]
[1747779337657,2.0993,2504.7,2504.6,0.79821]
[1747779337855,4.095585,2504.7,2504.6,0.79821]
[1747779338058,3.2078,2504.9,2504.8,0.79815]
[1747779338255,5.20393001,2504.9,2504.8,0.79815]
[1747779338652,1.99613001,2504.9,2504.8,0.79815]
[1747779339158,4.7307,2505.3,2504.8,3.49838]
[1747779339353,4.7307,2505.3,2505.2,0.79802]
[1747779339554,4.73069,2505.3,2505.2,0.79802]
[1747779339755,6.7265,2505.3,2505.2,0.79802]
[1747779341863,5.92851,2505.3,2505.2,0.79802]
[1747779342063,5.92851,2505.3,2504.8,5.08601503]
[1747779342064,0.79812,2504.9,2504.8,0.37596503]
[1747779342261,4.00592,2504.9,2504.8,0.37596503]
[1747779342559,11.00205001,2504.9,2504.8,0.37596503]
[1747779342759,11.00205001,2504.9,2504.3,0.80427838]
[1747779342760,1.99539,2504.8,2504.3,0.80427838]
[1747779342963,0.79828,2504.4,2504.3,0.00598838]
[1747779343456,2.794805,2504.4,2504.3,0.00598838]
[1747779343663,6.002605,2504.4,2504.3,0.00598838]
[1747779344861,11.002605,2504.4,2504.3,0.00598838]
[1747779345055,0.79843,2503.9,2503.8,0.37596503]
[1747779345260,41.59843,2503.9,2503.8,0.37596503]
[1747779345463,48.595355,2503.9,2503.8,0.37596503]
[1747779345654,50.722755,2503.9,2503.8,0.37596503]
[1747779346561,0.79847,2503.8,2503.7,1.9698686]
[1747779347064,9.15497501,2503.8,2503.7,1.9698686]
[1747779349665,0.7985,2503.7,2503.6,0.00598838]
[1747779349963,0.79882,2502.7,2502.6,0.37596503]
[1747779350464,2.7967,2502.7,2502.6,0.37596503]
[1747779350666,4.1131,2502.7,2502.6,1.72726503]
[1747779351166,2.7967,2502.7,2502.6,2.52611503]
[1747779351364,1.99788,2502.7,2502.6,2.15015]
[1747779351674,0.79868,2503.2,2503.1,0.79865]
[1747779351963,2.796165,2503.2,2503.1,0.79865]
[1747779352769,1.997485,2503.2,2502.9,1.3513]
[1747779353267,0.79871,2503.1,2503.0,0.7987]
[1747779353667,44.0078,2503.5,2503.3,0.79859]
[1747779353868,0.79867,2503.3,2503.2,0.79864]
[1747779354068,0.79872,2503.1,2503.0,0.7987]
[1747779354268,0.79872,2503.0,2502.9,1.3513]
[1747779354663,2.796365,2503.0,2502.9,1.3513]
[1747779354866,2.796365,2503.0,2502.9,2.15005]
[1747779355563,0.79872,2503.0,2502.9,2.15005]
[1747779355763,2.796365,2503.0,2502.9,2.15005]
[1747779356064,0.79872,2503.0,2502.9,2.15005]
[1747779356271,0.79882,2502.7,2502.6,0.79884]
[1747779356574,0.79888,2502.5,2502.4,0.00598838]
[1747779356772,4.00668,2502.5,2502.4,0.00598838]
[1747779357074,11.00472,2502.5,2502.4,0.00598838]
[1747779357274,13.15742,2502.5,2502.4,0.00598838]
[1747779360284,26.37242,2502.5,2502.4,0.00598838]
[1747779360683,26.37242,2502.5,2502.4,8.38e-06]
[1747779360882,0.79933,2501.1,2500.6,0.56682676]
[1747779361081,17.22213,2501.1,2501.0,0.12535698]
[1747779361288,0.79942,2500.8,2500.6,0.56682676]
[1747779361480,0.79957,2500.4,2500.2,3.14736503]
[1747779361786,3.2078,2500.8,2500.3,1.3436]
[1747779361787,0.00598838,2500.6,2500.3,1.3436]
[1747779361978,0.00598838,2500.6,2500.5,0.79952]
[1747779362382,0.80547838,2500.6,2500.5,1.99956]
[1747779362573,0.00598838,2500.6,2500.5,3.34316]
[1747779362779,0.80547838,2500.6,2500.5,3.34316]
[1747779363179,0.80547838,2500.6,2500.2,0.37596503]
[1747779363180,5.21334838,2500.6,2500.2,0.37596503]
[1747779363381,5.21334838,2500.6,2500.5,0.88438477]
[1747779363582,3.21378838,2500.6,2500.5,0.88438477]
[1747779363785,3.21378838,2500.6,2500.5,2.88394477]
[1747779364282,3.21378838,2500.6,2500.5,2.08442477]
[1747779364584,3.21378838,2500.6,2500.5,2.79908]
[1747779365884,3.2078,2501.2,2500.7,1.99865]
[1747779366079,3.2078,2501.2,2501.1,0.79933]
[1747779366689,13.222,2501.5,2501.1,1.99908]
[1747779366886,3.21378838,2501.6,2501.0,3.40065838]
[1747779367085,3.21378838,2501.6,2501.5,0.7992]
[1747779368285,3.21378838,2501.6,2501.5,2.79796]
[1747779368487,0.00598838,2501.6,2501.5,2.79796]
[1747779369095,1.324,2502.3,2501.7,1.99782]
[1747779369390,1.324,2502.3,2502.1,0.79899]
[1747779369391,0.79898,2502.2,2502.1,0.79899]
[1747779369590,1.324,2502.3,2502.2,0.79898]
[1747779369784,22.17145736,2502.4,2502.2,0.79896]
[1747779369985,24.96852736,2502.4,2502.3,1.3242]
[1747779370189,24.29436736,2502.4,2502.3,1.3242]
[1747779370484,26.29248737,2502.4,2502.3,2.12314]
[1747779371295,1.99739,2502.3,2500.2,0.75322562]
[1747779371493,3.2078,2501.1,2500.4,3.2078]
[1747779371686,4.00713,2501.1,2500.8,0.37596503]
[1747779371886,5.20696,2501.1,2500.8,0.37596503]
[1747779372489,3.2078,2501.1,2501.0,0.80534838]
[1747779372696,3.2078,2501.1,2501.0,2.80450837]
[1747779373099,6.00629,2501.1,2501.0,0.00598838]
[1747779373401,7.37799,2501.1,2501.0,0.00598838]
[1747779377311,7.37799,2501.1,2501.0,2.15664838]
[1747779377511,6.00629,2501.1,2501.0,2.15664838]
[1747779377812,6.00629,2501.1,2501.0,0.00598838]
[1747779378207,11.00629,2501.1,2501.0,0.00598838]
[1747779378914,11.00629,2501.1,2501.0,8.38e-06]
[1747779380911,6.00629,2501.1,2501.0,8.38e-06]
[1747779381301,19.23129,2501.1,2501.0,8.38e-06]
[1747779382411,23.43196,2501.1,2499.8,0.37596503]
[1747779382613,4.00751,2499.9,2499.8,0.37596503]
[1747779383010,6.00763,2499.9,2499.8,0.37596503]
[1747779383315,3.2078,2499.9,2499.8,0.79974]
[1747779383615,0.79971,2499.9,2499.8,2.79986]
[1747779383807,0.79971,2499.9,2499.8,0.79974]
[1747779384209,0.79974,2499.8,2499.7,2.19106]
[1747779384412,3.2078,2499.8,2499.6,0.80576838]
[1747779384617,0.79977,2499.7,2499.6,0.80576838]
[1747779384816,2.12827,2499.7,2499.6,0.00598838]
[1747779385013,4.12855,2499.7,2499.6,0.00598838]
[1747779385211,0.79997,2499.1,2499.0,0.56682676]
[1747779385410,17.23477,2499.1,2499.0,0.25564927]
[1747779385722,0.80006,2498.8,2498.4,0.80017]
[1747779385911,1.3734,2499.0,2498.9,0.80003]
[1747779386112,4.00769,2499.4,2498.8,1.3533]
[1747779386416,1.3734,2499.3,2499.2,0.79991]
[1747779386620,2.1733,2499.3,2499.2,0.79991]
[1747779386809,1.3734,2499.3,2499.2,2.80051]
[1747779387212,5.3811,2499.3,2499.2,2.0006]
[1747779387413,4.5812,2499.3,2499.2,2.80053]
[1747779387607,1.3734,2499.3,2499.2,2.80053]
[1747779388215,4.1739,2499.3,2498.8,1.43816477]
[1747779388422,0.80001,2499.0,2498.9,0.3200464]
[1747779388613,20.2348,2499.3,2498.9,0.3200464]
[1747779388814,0.79998,2499.1,2498.9,1.1200564]
[1747779389009,0.79996,2499.1,2499.0,0.79999]
[1747779389214,3.2078,2499.3,2498.9,0.3200464]
[1747779389413,16.8628,2499.3,2499.2,0.79993]
[1747779389813,18.8634,2499.3,2499.2,0.79993]
[1747779390219,5.2084,2499.3,2499.2,0.79993]
[1747779390619,3.2078,2499.3,2499.2,0.79993]
[1747779390923,3.2078,2499.6,2499.5,0.79983]
[1747779391424,0.00600048,2500.0,2499.9,0.79971]
[1747779391929,0.00600048,2500.0,2499.9,2.79975]
[1747779393024,0.80568048,2500.0,2499.9,2.79975]
[1747779393319,2.00604048,2500.0,2499.9,0.79971]
[1747779393522,0.80568048,2500.0,2499.9,2.79975]
[1747779394320,0.80568048,2500.0,2499.9,2.00004]
[1747779394527,0.79971,2499.9,2499.8,0.79972]
[1747779395118,2.79983,2499.9,2499.8,0.79972]
[1747779395318,2.00012,2499.9,2499.8,0.79972]
[1747779395629,0.00600048,2500.0,2499.9,0.79971]
[1747779395827,0.80570048,2500.0,2499.9,0.79971]
[1747779396034,0.79972,2499.9,2499.8,0.79973]
[1747779396227,0.79975,2499.8,2499.7,0.79975]
[1747779396426,0.79975,2499.8,2499.6,1.4109]
[1747779396427,0.00600048,2500.0,2499.5,3.2078]
[1747779396722,0.7998,2499.7,2499.6,0.79979]
[1747779397125,0.7998,2499.7,2499.6,2.80007]
[1747779397326,0.79976,2499.8,2499.7,0.79976]
[1747779397525,0.00600048,2500.0,2499.9,0.79971]
[1747779397723,0.00600048,2500.0,2499.9,2.79975]
[1747779397925,0.80568048,2500.0,2499.9,2.79975]
[1747779399023,0.80568048,2500.0,2499.9,2.00004]
[1747779399723,2.00604048,2500.0,2499.5,5.20738]
[1747779399922,0.80569048,2500.0,2499.9,0.79971]
[1747779400429,0.7999,2499.3,2499.2,1.08161207]
[1747779400927,0.7999,2499.3,2499.2,3.08221207]
[1747779401326,3.2078,2499.5,2499.4,0.79987]
[1747779401626,4.00754,2499.8,2499.7,0.79978]
[1747779401932,0.79981,2499.7,2499.6,0.79979]
[1747779402327,3.2078,2499.8,2499.7,0.79978]
[1747779402527,4.00754,2499.8,2499.7,0.79978]
[1747779403226,4.00754,2499.8,2499.3,2.71627]
[1747779403227,0.79981,2499.7,2499.6,0.79978]
[1747779403530,0.79981,2499.7,2499.4,0.79983]
[1747779403531,0.79986,2499.5,2499.4,0.79983]
[1747779403730,1.4144,2499.7,2499.5,0.79981]
[1747779403731,0.79984,2499.6,2499.5,0.79981]
[1747779403934,0.79988,2499.5,2499.4,0.79986]
[1747779404127,1.2791,2499.5,2499.4,0.79986]
[1747779404326,3.27954,2499.5,2499.4,0.79986]
[1747779404722,16.8638,2499.8,2499.4,2.00044]
[1747779404928,0.79989,2499.4,2499.3,0.79986]
[1747779405328,0.79985,2499.5,2499.4,0.79983]
[1747779405730,2.80029,2499.5,2499.4,0.79983]
[1747779405934,0.79991,2499.4,2499.3,0.79989]
[1747779406233,2.07901,2499.4,2499.3,0.79989]
[1747779406433,2.07901,2499.4,2499.3,2.80041]
[1747779406936,0.79993,2499.2,2499.1,0.28168207]
[1747779407537,6.00841,2499.2,2499.1,0.28168207]
[1747779407742,6.24074136,2499.2,2499.1,0.28168207]
[1747779408037,6.24074136,2499.2,2499.1,0.36654684]
[1747779408436,6.24074136,2499.2,2499.1,0.08486477]
[1747779408937,0.80009,2498.7,2498.6,4.0079]
[1747779409139,0.80009,2498.8,2498.7,0.80007]
[1747779409338,2.00024,2498.7,2498.3,0.28168207]
[1747779409539,0.80014,2498.6,2498.5,0.80012]
[1747779409738,0.80019,2498.5,2498.4,0.80017]
[1747779410039,0.80018,2498.5,2498.4,0.80017]
[1747779410240,2.00124,2498.5,2498.4,0.80019]
[1747779410643,2.00124,2498.5,2498.2,5.20841]
[1747779410644,0.8002,2498.4,2498.3,0.8002]
[1747779410837,2.1257,2498.4,2498.3,0.8002]
[1747779411039,0.80015,2498.6,2498.5,0.80013]
[1747779411335,3.32666,2498.6,2498.5,0.80013]
[1747779411735,0.80016,2498.6,2498.5,0.80014]
[1747779411938,2.12566,2498.6,2498.5,0.80014]
[1747779412142,0.80019,2498.5,2498.4,0.80018]
[1747779412337,0.80019,2498.5,2498.1,0.28168207]
[1747779412338,0.80023,2498.4,2498.3,0.8002]
[1747779412644,0.80023,2498.4,2498.1,0.28168207]
[1747779412645,0.80025,2498.3,2498.2,0.80024]
[1747779412940,2.12575,2498.3,2498.2,0.80024]
[1747779413146,0.80025,2498.2,2498.1,0.28168207]
[1747779413333,0.80028,2498.1,2498.0,0.28168207]
[1747779413732,6.00964,2498.1,2498.0,0.28168207]
[1747779413934,7.30284,2498.1,2498.0,0.28168207]
[1747779414138,8.04724,2498.1,2498.0,0.28168207]
[1747779416046,7.24696,2498.1,2498.0,0.80031]
[1747779416246,6.50256,2498.1,2498.0,0.80031]
[1747779416440,4.501,2498.1,2498.0,2.80187]
[1747779416744,5.30128,2498.1,2498.0,2.80187]
[1747779417136,4.501,2498.1,2498.0,2.80187]
[1747779417435,0.80033,2498.0,2497.9,0.80031]
[1747779417638,3.2078,2498.3,2497.9,2.0008]
[1747779417838,0.8002,2498.4,2498.3,0.80019]
[1747779418139,0.80033,2498.0,2497.9,0.80032]
[1747779418534,5.20944,2498.0,2497.5,6.57608]
[1747779418740,1.2915,2497.9,2497.8,0.80035]
[1747779419139,1.2915,2497.9,2497.8,2.80206999]
[1747779420547,0.80042,2497.8,2497.7,0.80039]
[1747779420747,0.80045,2497.6,2497.5,4.00826]
[1747779420946,0.80045,2497.6,2497.5,3.2078]
[1747779421146,0.80045,2497.6,2497.4,1.08218207]
[1747779421147,0.80048,2497.5,2497.4,0.28168207]
[1747779421445,2.09558,2497.5,2497.4,0.28168207]
[1747779421744,4.09762,2497.5,2497.4,0.28168207]
[1747779422334,0.80054,2497.3,2497.2,7.28e-06]
[1747779422539,4.00834,2497.3,2497.2,7.28e-06]
[1747779422739,0.80067,2496.9,2496.8,0.75322562]
[1747779422939,3.2078,2496.9,2496.5,0.80079]
[1747779423143,1.2822,2496.8,2496.3,1.93270353]
[1747779423336,1.2822,2496.8,2496.7,0.80073]
[1747779423546,14.30763048,2497.1,2496.9,0.80065]
[1747779423741,2.08284,2497.0,2496.9,0.80064]
[1747779423942,0.00600048,2497.1,2497.0,0.80064]
[1747779424252,0.00600048,2497.1,2496.9,7.002405]
[1747779424253,2.00840548,2497.1,2496.9,0.80066]
[1747779424542,2.00840548,2497.1,2497.0,0.80064]
[1747779424749,0.00600048,2497.1,2497.0,0.80064]
[1747779425447,0.80660048,2497.1,2497.0,0.80064]
[1747779425849,0.00600048,2497.1,2496.6,0.32031482]
[1747779426153,0.80073,2496.7,2496.6,0.32031482]
[1747779426752,1.3838,2496.7,2496.6,3.12375982]
[1747779427058,0.80064,2497.0,2496.9,0.80064]
[1747779427351,0.80064,2497.0,2496.6,2.002685]
[1747779427352,0.80068,2496.9,2496.8,0.80069]
[1747779427651,0.8007,2496.8,2496.7,0.80071]
[1747779428152,2.803305,2496.8,2496.7,0.80071]
[1747779428344,4.172405,2496.8,2496.7,0.80071]
[1747779428550,3.371705,2496.8,2496.7,0.80071]
[1747779428847,1.3691,2496.8,2496.7,2.803315]
[1747779429348,2.1698,2496.8,2496.7,0.80071]
[1747779429544,0.00600048,2497.1,2496.7,2.002605]
[1747779429745,0.00600048,2497.1,2497.0,0.80064]
[1747779430244,2.00836548,2497.1,2497.0,0.80064]
[1747779431153,2.00836548,2497.1,2496.9,0.80067]
[1747779431345,1.3378,2497.0,2496.9,0.80067]
[1747779431650,1.3378,2497.0,2496.8,1.281]
[1747779431850,3.340285,2497.0,2496.8,1.281]
[1747779432051,1.3378,2497.0,2496.8,1.281]
[1747779432553,3.340285,2497.0,2496.9,0.80067]
[1747779432754,4.140925,2497.0,2496.8,0.80068]
[1747779432948,4.140925,2497.0,2496.6,0.32032815]
[1747779432949,3.2078,2496.9,2496.6,0.32032815]
[1747779433145,0.80073,2496.7,2496.6,0.32032815]
[1747779433349,1.3378,2496.8,2496.6,0.32032815]
[1747779433350,2.13851,2496.8,2496.6,0.32032815]
[1747779433649,3.34044501,2496.8,2496.6,0.32032815]
[1747779433848,3.34044501,2496.8,2496.7,0.80073]
[1747779434147,1.3378,2496.8,2496.7,0.80073]
[1747779434349,1.3378,2496.8,2496.7,2.803335]
[1747779434550,3.2078,2496.9,2496.8,0.8007]
[1747779434751,1.3849,2497.0,2496.9,0.80067]
[1747779435142,0.8007,2496.8,2496.7,1.4079]
[1747779435343,3.2078,2496.8,2496.2,3.29266477]
[1747779435648,0.80085,2496.4,2496.2,4.09354477]
[1747779435949,1.3849,2496.3,2496.2,4.09354477]
[1747779436342,1.3849,2496.3,2496.2,6.011685]
[1747779436948,0.8008,2496.5,2496.3,0.80086]
[1747779437155,1.3849,2496.6,2496.5,0.8008]
[1747779437755,1.3849,2496.6,2495.9,3.2078]
[1747779437756,2.00201,2496.5,2495.9,3.2078]
[1747779437946,6.59715,2496.4,2495.6,2.00268]
[1747779438257,4.595,2496.4,2496.3,0.80086]
[1747779438451,13.508,2496.8,2496.7,0.80074]
[1747779438654,1.3872,2497.0,2496.5,2.002]
[1747779438944,0.80068,2496.9,2496.7,0.80071]
[1747779439156,1.3872,2496.8,2496.7,0.80074]
[1747779439547,3.389805,2496.8,2496.7,0.80074]
[1747779439850,1.3872,2496.8,2496.7,0.80074]
[1747779440051,3.21380048,2497.1,2497.0,0.80064]
[1747779440251,0.00600048,2497.1,2497.0,0.80064]
[1747779440448,0.00600048,2497.1,2496.9,0.80065]
[1747779440653,0.00600048,2497.1,2497.0,0.80064]
[1747779441049,0.00600048,2497.1,2497.0,2.803005]
[1747779441260,0.00600048,2497.1,2497.0,21.311005]
[1747779442254,0.00600048,2497.1,2497.0,21.63127066]
[1747779442457,3.2078,2497.9,2497.6,0.80044]
[1747779442658,4.6242,2497.9,2497.6,0.80044]
[1747779442952,8.62691001,2497.9,2497.1,4.6638]
[1747779443158,3.2078,2497.6,2497.0,0.32026566]
[1747779443355,0.80055,2497.3,2497.1,0.80059]
[1747779443557,0.00600048,2497.4,2497.3,0.80054]
[1747779443749,1.41460048,2497.4,2497.3,0.80054]
[1747779443949,1.41460048,2497.4,2497.3,2.80266]